bitfinex-derivatives/quotes_SOLF0:USTF0_20240904
["timestamp","ask_amount","ask_price","bid_price","bid_amount"]
[1725415518849,0.06076709,126.29,126.27,0.05734338]
[1725415519439,4.02046709,126.29,126.27,0.05734338]
[1725415519644,0.06076709,126.29,126.27,0.05734338]
[1725415523542,0.06076709,126.29,126.23,3.9613]
[1725415523745,0.06076709,126.29,126.23,7.87094739]
[1725415524251,3.9605,126.27,126.22,3.9618]
[1725415524444,0.05288459,126.26,126.23,0.05029791]
[1725415524944,3.9609,126.25,126.23,0.05029791]
[1725415527353,0.05288459,126.26,126.23,0.05029791]
[1725415528351,0.05288459,126.26,126.24,3.9612]
[1725415528739,0.05288459,126.26,126.23,0.05029791]
[1725415528945,0.05288459,126.26,126.25,3.9609]
[1725415529248,0.05288459,126.26,126.23,0.05029791]
[1725415530544,1.43798459,126.26,126.23,0.05029791]
[1725415531549,3.9611,126.25,126.23,0.05029791]
[1725415531951,1.43798459,126.26,126.23,0.05029791]
[1725415532252,0.05288459,126.26,126.23,0.05029791]
[1725415532950,0.05288459,126.26,126.24,3.9613]
[1725415536351,1.4825,126.3,126.23,0.05029791]
[1725415536352,7.919,126.3,126.23,0.05029791]
[1725415536555,7.919,126.3,126.26,34.1]
[1725415536757,3.95699659,126.36,126.28,34.1]
[1725415537052,3.9579,126.35,126.28,34.1]
[1725415537252,35.504,126.38,126.26,34.1]
[1725415537253,34.1,126.36,126.26,34.1]
[1725415537454,0.05290386,126.32,126.3,0.05988836]
[1725415538358,0.05290386,126.32,126.3,4.01908836]
[1725415538862,0.05290386,126.32,126.31,3.9591]
[1725415540567,7.919,126.38,126.35,3.9577]
[1725415541463,11.93613378,126.38,126.35,4.01222104]
[1725415542353,11.93613378,126.38,126.35,0.05452104]
[1725415543362,7.97923378,126.38,126.35,0.05452104]
[1725415543763,0.06023378,126.38,126.36,3.9575]
[1725415543964,0.06023378,126.38,126.35,0.05452104]
[1725415544160,7.919,126.41,126.36,34.1]
[1725415544369,7.919,126.45,126.36,34.1]
[1725415544862,7.919,126.45,126.41,3.9558]
[1725415545064,7.919,126.45,126.36,34.1]
[1725415545065,11.8739,126.45,126.36,34.1]
[1725415545258,0.0554276,126.42,126.39,0.05805493]
[1725415545654,0.0554276,126.42,126.4,34.1]
[1725415545852,0.0554276,126.42,126.41,3.9559]
[1725415546464,0.0554276,126.42,126.41,7.82156777]
[1725415547167,0.0554276,126.42,126.41,3.9559]
[1725415547368,7.919,126.48,126.41,38.03410417]
[1725415547563,110.28659954,126.5,126.43,34.1]
[1725415548054,110.28659954,126.5,126.46,3.9541]
[1725415548260,0.05935407,126.49,126.47,0.05665086]
[1725415548862,0.05935407,126.49,126.47,4.01065086]
[1725415549164,0.05935407,126.49,126.47,4.02012524]
[1725415549372,0.05935407,126.49,126.48,3.9537]
[1725415550262,2.7517,126.55,126.47,38.06347438]
[1725415550564,18.8446227,126.56,126.49,34.1]
[1725415550762,18.8446227,126.56,126.53,3.9519]
[1725415550959,18.8446227,126.56,126.54,3.94489065]
[1725415551160,10.9256227,126.56,126.51,34.1]
[1725415551359,10.97804528,126.56,126.54,4.00655264]
[1725415551565,10.97804528,126.56,126.54,8.05661929]
[1725415551770,10.97804528,126.56,126.54,0.05495264]
[1725415553169,10.97804528,126.56,126.55,3.9516]
[1725415553356,45.07804528,126.56,126.41,3.91009558]
[1725415553560,45.0256227,126.56,126.46,34.1]
[1725415553758,3.86336733,126.55,126.46,38.13960358]
[1725415554170,3.9521,126.54,126.49,3.9532]
[1725415554367,0.05832034,126.53,126.5,0.05253996]
[1725415555664,7.919,126.52,126.5,0.05253996]
[1725415556464,3.9528,126.51,126.5,0.05253996]
[1725415556773,11.8718,126.51,126.5,0.05253996]
[1725415557072,7.919,126.51,126.5,0.05253996]
[1725415557573,0.05832034,126.53,126.5,0.05253996]
[1725415557870,7.919,126.51,126.5,0.05253996]
[1725415558774,7.97732034,126.53,126.5,0.05253996]
[1725415559265,0.05832034,126.53,126.5,4.00553996]
[1725415559974,0.05832034,126.53,126.5,0.05253996]
[1725415560665,7.919,126.51,126.5,0.05253996]
[1725415560867,1.44582034,126.53,126.5,0.05253996]
[1725415561069,0.05832034,126.53,126.5,0.05253996]
[1725415561269,7.97732034,126.53,126.5,0.05253996]
[1725415561666,11.92972034,126.53,126.5,0.05253996]
[1725415562076,0.05832034,126.53,126.5,0.05253996]
[1725415562773,1.43432034,126.53,126.5,0.05253996]
[1725415563072,7.919,126.51,126.44,1.4828]
[1725415563378,3.9546,126.46,126.42,3.9556]
[1725415563577,11.8736,126.46,126.42,3.9556]
[1725415563877,7.919,126.46,126.39,1.4325]
[1725415564080,0.05121644,126.44,126.42,3.9554]
[1725415564377,0.05121644,126.44,126.41,0.05223783]
[1725415565078,0.05121644,126.44,126.43,3.9553]
[1725415565279,0.05121644,126.44,126.43,7.91971379]
[1725415565577,0.05121644,126.44,126.43,3.9553]
[1725415565779,0.05121644,126.44,126.43,7.96084088]
[1725415568784,0.05121644,126.44,126.41,0.05223783]
[1725415569175,11.8746,126.43,126.41,0.05223783]
[1725415569671,7.919,126.43,126.41,0.05223783]
[1725415570381,3.9556,126.42,126.41,0.05223783]
[1725415570781,11.8746,126.42,126.41,0.05223783]
[1725415571379,7.919,126.42,126.41,0.05223783]
[1725415571787,7.97021644,126.44,126.41,0.05223783]
[1725415572086,7.97021644,126.44,126.41,4.00783783]
[1725415572673,0.05121644,126.44,126.41,4.00783783]
[1725415572880,0.05121644,126.44,126.42,3.9555]
[1725415573081,0.05121644,126.44,126.41,0.05223783]
[1725415575085,4.00641644,126.44,126.41,0.05223783]
[1725415575383,0.05121644,126.44,126.41,0.05223783]
[1725415575887,4.00621644,126.44,126.41,0.05223783]
[1725415576988,0.05121644,126.44,126.41,4.00813783]
[1725415577385,0.05121644,126.44,126.41,0.05223783]
[1725415578083,0.05121644,126.44,126.43,3.9553]
[1725415579411,0.05121644,126.44,126.42,3.9554]
[1725415579902,0.05121644,126.44,126.43,3.9553]
[1725415580303,0.05121644,126.44,126.41,0.05223783]
[1725415581006,0.05121644,126.44,126.43,3.9553]
[1725415581199,1.4785,126.51,126.43,4.00000454]
[1725415581398,1.4785,126.51,126.45,34.1]
[1725415581597,5.4314,126.51,126.45,34.1]
[1725415582098,5.4314,126.51,126.48,3.9537]
[1725415582298,0.05313209,126.49,126.47,0.0519849]
[1725415582808,0.05313209,126.49,126.48,3.9537]
[1725415584300,0.05313209,126.49,126.48,7.85738755]
[1725415586597,7.919,126.55,126.48,3.90368755]
[1725415586809,9.2653,126.58,126.5,34.1]
[1725415587004,9.2653,126.58,126.5,38.13574217]
[1725415587308,1.3856,126.57,126.51,3.9526]
[1725415587506,1.3856,126.57,126.49,1.4444]
[1725415587708,0.05893258,126.54,126.52,0.05395323]
[1725415588407,4.01083258,126.54,126.52,0.05395323]
[1725415588707,0.05893258,126.54,126.52,0.05395323]
[1725415588907,11.8712,126.53,126.52,0.05395323]
[1725415589607,7.919,126.53,126.52,0.05395323]
[1725415589910,0.05893258,126.54,126.52,0.05395323]
[1725415590116,3.9522,126.53,126.52,0.05395323]
[1725415590410,34.15893258,126.54,126.45,34.1]
[1725415590609,34.1,126.54,126.45,34.1]
[1725415591003,7.919,126.51,126.46,3.9543]
[1725415591207,7.919,126.51,126.44,5.42654604]
[1725415591409,0.05372129,126.49,126.46,0.05612934]
[1725415592317,4.00712129,126.49,126.46,0.05612934]
[1725415592611,0.05372129,126.49,126.46,0.05612934]
[1725415594410,0.05372129,126.49,126.47,34.1]
[1725415594616,0.05372129,126.49,126.48,3.9537]
[1725415595714,3.9522,126.54,126.5,3.9529]
[1725415596213,7.919,126.55,126.47,34.1]
[1725415596713,0.056349,126.52,126.5,0.05613598]
[1725415597412,0.056349,126.52,126.5,4.00903598]
[1725415599116,0.056349,126.52,126.5,0.05613598]
[1725415599504,7.919,126.51,126.28,44.76611369]
[1725415599705,7.919,126.49,126.39,34.1]
[1725415600009,7.919,126.47,126.38,2.7745]
[1725415600317,7.919,126.45,126.35,1.472]
[1725415600513,0.05907178,126.41,126.39,0.0547347]
[1725415600713,34.1,126.4,126.32,2.7745]
[1725415601014,7.919,126.39,126.32,2.7745]
[1725415601215,3.9574,126.37,126.32,6.733]
[1725415601814,0.05686911,126.36,126.33,0.06000936]
[1725415602718,0.05686911,126.36,126.33,4.01840936]
[1725415603209,0.05686911,126.36,126.33,0.06000936]
[1725415604507,0.05686911,126.36,126.35,3.9578]
[1725415606112,0.05686911,126.36,126.33,34.16000936]
[1725415606113,7.919,126.41,126.37,3.9569]
[1725415607010,3.956,126.41,126.37,3.9569]
[1725415607216,0.0548854,126.4,126.38,0.0502726]
[1725415607417,4.0111854,126.4,126.38,0.0502726]
[1725415607917,0.0548854,126.4,126.38,0.0502726]
[1725415609217,7.9738854,126.4,126.38,0.0502726]
[1725415609525,7.919,126.39,126.38,0.0502726]
[1725415610222,0.0548854,126.4,126.38,0.0502726]
[1725415614414,7.919,126.38,126.31,3.99028572]
[1725415614622,7.919,126.38,126.27,34.1]
[1725415614825,7.919,126.38,126.28,1.4449]
[1725415615018,7.919,126.38,126.29,2.9197]
[1725415615219,7.919,126.38,126.29,6.84998981]
[1725415615523,7.97124915,126.35,126.32,4.01499996]
[1725415615716,7.97124915,126.35,126.32,3.95117857]
[1725415615919,7.97124915,126.35,126.33,3.9582]
[1725415616421,0.05224915,126.35,126.33,3.9582]
[1725415616724,0.05224915,126.35,126.32,3.95117857]
[1725415617520,0.05224915,126.35,126.32,0.05649996]
[1725415618029,3.9584,126.33,126.32,0.05649996]
[1725415618325,7.97124915,126.35,126.32,0.05649996]
[1725415618525,3.9582,126.34,126.32,0.05649996]
[1725415619327,3.9584,126.33,126.32,0.05649996]
[1725415619527,7.97124915,126.35,126.32,0.05649996]
[1725415620030,3.9582,126.34,126.32,0.05649996]
[1725415620434,0.05224915,126.35,126.32,0.05649996]
[1725415621231,0.05224915,126.35,126.32,1.54359996]
[1725415621733,0.05224915,126.35,126.34,3.9581]
[1725415623130,0.05224915,126.35,126.33,3.9583]
[1725415623934,0.05224915,126.35,126.32,0.05649996]
[1725415624531,0.05224915,126.35,126.34,3.9581]
[1725415626631,0.05224915,126.35,126.32,0.05649996]
[1725415627540,4.01024915,126.35,126.32,0.05649996]
[1725415628139,34.15224915,126.35,126.32,0.05649996]
[1725415628339,34.1,126.33,126.23,4.191]
[1725415628841,1.4566,126.34,126.23,4.191]
[1725415629040,11.8779,126.32,126.24,34.1]
[1725415629231,0.05822215,126.29,126.27,0.0541589]
[1725415629538,0.05822215,126.29,126.28,3.9598]
[1725415629937,7.919,126.32,126.29,3.9596]
[1725415630441,7.919,126.32,126.29,7.8745667]
[1725415630637,11.8778,126.32,126.29,7.8745667]
[1725415631141,11.93563761,126.32,126.29,7.8745667]
[1725415631540,11.8784,126.31,126.27,0.0541589]
[1725415631734,7.919,126.31,126.27,0.0541589]
[1725415632041,3.9598,126.29,126.27,0.0541589]
[1725415632238,4.01865786,126.29,126.27,0.0541589]
[1725415632637,4.01865786,126.29,126.27,4.06216]
[1725415632638,0.05885786,126.29,126.27,4.06216]
[1725415633136,0.05885786,126.29,126.28,3.96]
[1725415640446,7.919,126.37,126.28,34.1]
[1725415640747,7.919,126.37,126.3,34.1]
[1725415640947,7.919,126.37,126.3,38.07672571]
[1725415641249,11.8762,126.37,126.3,38.07672571]
[1725415641447,0.05425614,126.35,126.32,0.05638852]
[1725415641746,0.05425614,126.35,126.34,3.9581]
[1725415642244,7.919,126.4,126.38,3.9568]
[1725415642447,7.919,126.4,126.3,3.97672571]
[1725415642448,7.919,126.4,126.33,34.1]
[1725415643338,0.05735567,126.38,126.37,3.9572]
[1725415643541,2.8016,126.47,126.37,3.9572]
[1725415643542,0.05547544,126.39,126.37,38.03424661]
[1725415643743,3.9544,126.46,126.37,39.42774661]
[1725415644348,11.8734,126.46,126.37,39.42774661]
[1725415644650,7.919,126.46,126.42,3.9554]
[1725415644849,0.059719,126.45,126.43,0.05266421]
[1725415645746,0.059719,126.45,126.44,3.955]
[1725415646145,0.059719,126.45,126.43,0.05266421]
[1725415646452,4.014419,126.45,126.43,0.05266421]
[1725415646645,0.059719,126.45,126.43,0.05266421]
[1725415648242,0.059719,126.45,126.43,4.00796421]
[1725415648650,0.059719,126.45,126.44,3.955]
[1725415649945,13.18950889,126.53,126.46,3.9541]
[1725415650351,3.953,126.51,126.46,3.9541]
[1725415650651,3.953,126.51,126.46,7.94699015]
[1725415650849,3.9525,126.52,126.46,3.99289015]
[1725415651152,0.05565344,126.5,126.48,0.05676252]
[1725415651645,0.05565344,126.5,126.48,4.01046252]
[1725415652756,0.05565344,126.5,126.48,0.05676252]
[1725415653847,0.05565344,126.5,126.48,4.01026252]
[1725415654846,0.05565344,126.5,126.49,3.9534]
[1725415655546,0.05565344,126.5,126.48,4.01036252]
[1725415656155,0.05565344,126.5,126.48,0.05676252]
[1725415657849,0.05565344,126.5,126.49,3.9534]
[1725415658760,3.9517,126.55,126.51,3.9527]
[1725415658960,9.3585,126.58,126.51,3.99242152]
[1725415659150,11.8703,126.56,126.52,3.9524]
[1725415659352,7.919,126.56,126.52,3.89954694]
[1725415659549,0.05637748,126.55,126.53,0.0592223]
[1725415660155,0.05637748,126.55,126.53,4.03504496]
[1725415660554,0.05637748,126.55,126.53,0.0592223]
[1725415662055,348.25167612,126.72,126.53,35.5100223]
[1725415662257,5.39061637,126.66,126.55,34.1]
[1725415662557,3.9491,126.63,126.58,3.9506]
[1725415662762,9.3278,126.66,126.57,34.1]
[1725415663067,0.05128877,126.63,126.6,0.05198692]
[1725415663260,0.05128877,126.63,126.6,34.15198692]
[1725415663763,0.05128877,126.63,126.62,34.1]
[1725415664162,0.05128877,126.63,126.6,38.09864729]
[1725415665562,0.05128877,126.63,126.62,34.1]
[1725415665771,0.05128877,126.63,126.62,38.0494]
[1725415666255,0.05128877,126.63,126.62,39.4633]
[1725415666563,3.9474,126.69,126.62,39.4633]
[1725415666762,3.947,126.7,126.64,34.1]
[1725415667060,7.00042482,126.68,126.66,34.1]
[1725415667264,84.92056149,126.75,126.66,34.1]
[1725415667461,84.92056149,126.75,126.68,34.1]
[1725415667764,0.05157086,126.73,126.7,0.05299676]
[1725415667959,0.05157086,126.73,126.71,4.03712783]
[1725415668157,0.05157086,126.73,126.7,0.05299676]
[1725415668357,0.05157086,126.73,126.72,3.9462]
[1725415670164,0.05157086,126.73,126.72,38.0462]
[1725415670461,72.97785917,126.75,126.74,3.9456]
[1725415670660,68.12785918,126.75,126.74,3.9456]
[1725415670857,68.12785918,126.75,126.72,34.1]
[1725415670858,91.0419595,126.77,126.75,3.9451]
[1725415671267,91.0419595,126.77,126.75,4.00238186]
[1725415671466,98.9609595,126.77,126.75,4.00238186]
[1725415671763,91.0419595,126.77,126.75,4.00238186]
[1725415671969,91.0419595,126.77,126.75,0.05728186]
[1725415672667,91.0419595,126.77,126.75,4.00238186]
[1725415673063,91.0419595,126.77,126.75,7.91646524]
[1725415673668,91.0419595,126.77,126.76,3.945]
[1725415673856,91.0419595,126.77,126.76,38.045]
[1725415674055,221.64081496,126.83,126.76,34.1]
[1725415674056,109.33374133,126.83,126.76,34.1]
[1725415674262,109.33374133,126.83,126.8,34.1]
[1725415674662,109.33374133,126.83,126.81,3.9434]
[1725415674967,109.33374133,126.83,126.81,0.05039469]
[1725415676659,109.33374133,126.83,126.78,38.0444]
[1725415676864,109.33374133,126.83,126.78,3.9444]
[1725415677476,117.25274133,126.83,126.74,34.1]
[1725415677666,1.3582,126.82,126.77,0.05108417]
[1725415677867,0.05036575,126.8,126.77,0.05108417]
[1725415678071,3.95633688,126.8,126.72,34.1]
[1725415678374,1.3595,126.81,126.72,34.1]
[1725415678574,4.02864907,126.8,126.72,34.1]
[1725415678974,0.05194416,126.77,126.75,0.05336647]
[1725415680475,7.8772,126.97,126.76,34.1]
[1725415680685,7.8772,126.97,126.75,0.05336647]
[1725415680686,3.9424,126.85,126.8,3.9437]
[1725415680870,3.94068386,126.86,126.79,34.1]
[1725415681174,34.1,126.88,126.78,3.92884997]
[1725415681479,3.99397619,126.84,126.82,0.05216411]
[1725415682075,3.9428,126.83,126.82,0.05216411]
[1725415682973,0.05117619,126.84,126.82,0.05216411]
[1725415683674,0.05117619,126.84,126.82,3.99760335]
[1725415683870,0.05117619,126.84,126.82,0.05216411]
[1725415684066,0.05117619,126.84,126.83,38.0428]
[1725415684472,0.05117619,126.84,126.83,42.00220425]
[1725415684680,7.919,126.93,126.83,38.05940425]
[1725415685076,7.919,126.93,126.83,34.1]
[1725415685270,38.3724,126.94,126.86,3.9417]
[1725415685271,11.8595,126.91,126.86,3.9417]
[1725415685474,7.919,126.91,126.86,3.9417]
[1725415685674,4.2724,126.94,126.87,0.05154819]
[1725415685881,3.97596255,126.93,126.87,34.15154819]
[1725415686176,12.1914,126.94,126.87,34.15154819]
[1725415686385,12.1914,126.94,126.87,0.05154819]
[1725415686577,3.9405,126.91,126.87,0.05154819]
[1725415687381,3.9402,126.92,126.87,0.05154819]
[1725415687581,14.67503199,126.94,126.87,34.15154819]
[1725415687878,3.94,126.92,126.88,3.9412]
[1725415688179,3.94,126.92,126.89,0.05431173]
[1725415688682,14.67503199,126.94,126.89,0.05431173]
[1725415688884,7.919,126.92,126.79,1.4521]
[1725415689183,43.3943,126.91,126.81,34.1]
[1725415689381,11.8602,126.89,126.81,34.1]
[1725415689578,7.919,126.89,126.81,37.95765529]
[1725415689777,3.9425,126.85,126.84,0.05465604]
[1725415689976,0.05431173,126.86,126.79,3.92977941]
[1725415690178,7.919,126.87,126.78,38.0443]
[1725415690384,42.019,126.87,126.78,3.88484963]
[1725415690581,34.1,126.85,126.75,34.1]
[1725415690782,34.1,126.85,126.76,3.98929166]
[1725415690975,3.9437,126.81,126.79,0.06053896]
[1725415691477,0.05599667,126.82,126.79,0.06053896]
[1725415691877,0.05599667,126.82,126.8,3.9437]
[1725415692080,0.05599667,126.82,126.79,0.06053896]
[1725415692282,0.05599667,126.82,126.79,34.16053896]
[1725415692472,0.05599667,126.82,126.81,3.9434]
[1725415694081,0.05599667,126.82,126.8,3.9436]
[1725415696492,0.05599667,126.82,126.79,0.06053896]
[1725415697193,0.05599667,126.82,126.8,40.87]
[1725415697494,0.05599667,126.82,126.81,3.9434]
[1725415698491,0.05599667,126.82,126.81,7.97826173]
[1725415698896,1.4875,126.89,126.86,3.9417]
[1725415699092,1.4189,126.92,126.84,40.87]
[1725415699395,2.7927,126.92,126.84,44.74911362]
[1725415700096,0.05080219,126.89,126.87,0.05657104]
[1725415700292,0.05080219,126.89,126.88,3.9413]
[1725415702296,0.05080219,126.89,126.88,44.8113]
[1725415703095,0.05080219,126.89,126.88,46.2051]
[1725415703296,0.05080219,126.89,126.88,50.23222727]
[1725415703497,0.05080219,126.89,126.88,3.9413]
[1725415703799,0.05080219,126.89,126.88,7.86122639]
[1725415704104,0.05080219,126.89,126.88,48.73122639]
[1725415704790,0.05080219,126.89,126.88,50.12502639]
[1725415704988,3.9391,126.95,126.91,3.9401]
[1725415705291,5.411,126.96,126.88,46.18372639]
[1725415705501,5.411,126.96,126.92,3.94]
[1725415705992,5.411,126.96,126.93,0.05463079]
[1725415707196,3.9391,126.95,126.93,0.05463079]
[1725415707396,1.4721,126.96,126.93,0.05463079]
[1725415707898,1.52719613,126.96,126.88,44.78992639]
[1725415708097,1.4721,126.96,126.88,3.91992639]
[1725415708399,3.9401,126.92,126.88,3.9411]
[1725415708593,5.33129758,126.96,126.86,44.90689009]
[1725415708801,1.4721,126.96,126.88,40.87]
[1725415709097,0.0567997,126.93,126.91,0.0503664]
[1725415709497,0.0567997,126.93,126.92,3.94]
[1725415709696,1.3948,126.99,126.92,40.87]
[1725415709900,5.42262817,126.99,126.92,44.90137414]
[1725415710196,5.42262817,126.99,126.91,1.3577]
[1725415710795,5.42262817,126.99,126.94,0.0517445]
[1725415710996,3.9387,126.97,126.94,0.0517445]
[1725415711399,5.42262817,126.99,126.94,0.0517445]
[1725415711595,3.9388,126.96,126.94,0.0517445]
[1725415711797,5.42262817,126.99,126.88,40.87]
[1725415711996,40.87,126.98,126.88,40.87]
[1725415712795,3.9914445,126.94,126.92,0.05568395]
[1725415712995,0.0517445,126.94,126.93,40.87]
[1725415713199,0.0517445,126.94,126.93,44.77760975]
[1725415713402,0.0517445,126.94,126.93,48.71730975]
[1725415714302,1.3581,127.03,126.93,44.77760975]
[1725415714503,3.98086587,127.02,126.93,3.90760975]
[1725415714702,1.3581,127.03,126.92,40.87]
[1725415715196,13.24063721,127.03,126.92,44.79887989]
[1725415715505,9.2771,127.03,126.96,0.05966267]
[1725415715707,13.1776239,127.03,126.96,0.05966267]
[1725415715902,3.938,126.99,126.96,0.05966267]
[1725415716206,13.1776239,127.03,126.96,0.05966267]
[1725415716509,3.9382,126.98,126.96,0.05966267]
[1725415716807,13.1776239,127.03,126.96,0.05966267]
[1725415717008,1.4789,127.02,126.96,0.05966267]
[1725415717801,7.919,126.96,126.8,7.42062495]
[1725415718001,1.4789,126.95,126.87,34.04]
[1725415718210,1.4789,126.95,126.89,34.04]
[1725415718507,13.3371,126.95,126.91,3.9402]
[1725415718903,0.05207492,126.94,126.92,0.05653779]
[1725415719503,0.05207492,126.94,126.93,3.9397]
[1725415723308,0.05207492,126.94,126.93,37.9797]
[1725415725112,11.824,126.99,126.93,34.04]
[1725415725614,7.886,126.99,126.91,35.395]
[1725415726016,3.9387,126.97,126.94,0.05565461]
[1725415726217,7.886,126.99,126.94,0.05565461]
[1725415726513,3.9388,126.97,126.94,0.05565461]
[1725415727724,3.9389,126.96,126.94,0.05565461]
[1725415728018,9.3092,127.01,126.94,0.05565461]
[1725415728315,41.926,126.98,126.87,34.04]
[1725415728515,1.4068,126.97,126.87,34.04]
[1725415728714,1.4068,126.97,126.88,3.98472873]
[1725415728917,11.8257,126.94,126.88,3.98472873]
[1725415729109,11.8257,126.94,126.9,3.9405]
[1725415729305,3.99621226,126.92,126.89,0.05285907]
[1725415730115,3.9405,126.91,126.89,0.05285907]
[1725415730318,11.8265,126.91,126.89,0.05285907]
[1725415730817,7.886,126.91,126.89,0.05285907]
[1725415731318,11.8263,126.91,126.89,0.05285907]
[1725415731513,7.886,126.91,126.89,0.05285907]
[1725415731714,3.9407,126.9,126.89,0.05285907]
[1725415732212,7.886,126.91,126.89,0.05285907]
[1725415732413,11.8265,126.91,126.89,0.05285907]
[1725415732614,7.886,126.91,126.89,0.05285907]
[1725415733012,7.886,126.91,126.89,3.99365907]
[1725415733214,7.886,126.91,126.89,0.05285907]
[1725415733413,0.05601226,126.92,126.89,0.05285907]
[1725415733814,11.8266,126.91,126.89,0.05285907]
[1725415734017,7.886,126.91,126.89,34.09285907]
[1725415734213,7.886,126.91,126.9,3.9407]
[1725415734813,0.05601226,126.92,126.9,3.9407]
[1725415735309,0.05601226,126.92,126.89,34.09285907]
[1725415735516,0.05601226,126.92,126.91,3.9403]
[1725415737422,7.94201226,126.92,126.89,34.09285907]
[1725415737618,7.94201226,126.92,126.89,0.05285907]
[1725415738122,7.94201226,126.92,126.89,3.99365907]
[1725415738516,7.886,126.91,126.89,0.05285907]
[1725415739418,7.94201226,126.92,126.89,3.99365907]
[1725415739819,7.94201226,126.92,126.89,0.05285907]
[1725415740026,11.8265,126.91,126.89,0.05285907]
[1725415740219,7.886,126.91,126.89,0.05285907]
[1725415741020,7.886,126.9,126.89,3.99375907]
[1725415741220,0.05601226,126.92,126.89,34.09285907]
[1725415742825,7.886,126.96,126.91,34.04]
[1725415743032,2.8329,127.01,126.93,34.04]
[1725415743223,13.2993,127.01,126.97,3.9383]
[1725415743830,1.357,127.06,126.98,34.04]
[1725415744026,1.357,127.06,127.01,0.05643725]
[1725415744526,7.886,127.03,127.01,0.05643725]
[1725415745531,7.886,127.02,127.01,0.05643725]
[1725415747221,7.886,127.03,127.01,0.05643725]
[1725415748331,7.886,127.02,127.01,0.05643725]
[1725415749435,11.8229,127.02,127.01,0.05643725]
[1725415749734,11.8229,127.02,126.92,34.04]
[1725415749735,7.886,127.02,126.92,34.04]
[1725415749934,7.886,127.02,126.93,3.9395]
[1725415750137,41.926,126.99,126.9,34.04]
[1725415750340,5.48686849,126.98,126.88,38.4089]
[1725415750636,3.9389,126.96,126.91,3.9401]
[1725415750936,0.05688525,126.95,126.92,0.05959395]
[1725415753038,34.09688525,126.95,126.85,3.89189773]
[1725415753233,41.926,126.95,126.84,34.04]
[1725415753537,41.926,126.95,126.84,37.9370256]
[1725415754035,3.9406,126.91,126.86,3.9418]
[1725415754236,3.9406,126.91,126.87,0.056382]
[1725415754436,0.05151269,126.9,126.87,0.056382]
[1725415754630,0.05151269,126.9,126.87,0.05939321]
[1725415755937,0.05151269,126.9,126.88,34.04]
[1725415756137,0.05151269,126.9,126.88,35.5034]
[1725415756626,0.05151269,126.9,126.87,0.05939321]
[1725415756830,3.99221269,126.9,126.87,0.05939321]
[1725415757738,0.05151269,126.9,126.88,34.04]
[1725415758343,0.05151269,126.9,126.87,0.05939321]
[1725415759340,3.99241269,126.9,126.87,0.05939321]
[1725415759540,0.05151269,126.9,126.87,0.05939321]
[1725415760133,3.9411,126.89,126.87,0.05939321]
[1725415760441,0.05151269,126.9,126.87,0.05939321]
[1725415760639,11.827,126.89,126.87,0.05939321]
[1725415761041,3.9413,126.88,126.87,0.05939321]
[1725415761545,34.04,126.88,126.79,34.04]
[1725415761746,7.886,126.87,126.79,35.4724]
[1725415762442,7.886,126.87,126.79,1.4324]
[1725415762635,3.9428,126.83,126.82,0.05792788]
[1725415763238,3.9434,126.82,126.77,7.48065701]
[1725415763438,7.886,126.83,126.77,7.48065701]
[1725415763640,3.944,126.8,126.77,3.53595701]
[1725415763842,7.886,126.81,126.77,3.53595701]
[1725415764146,0.05873953,126.8,126.78,0.05908053]
[1725415764739,3.9441,126.79,126.78,0.05908053]
[1725415765142,0.05873953,126.8,126.78,0.05908053]
[1725415766644,3.9441,126.79,126.78,0.05908053]
[1725415766846,34.09873953,126.8,126.77,3.53595701]
[1725415767149,3.9447,126.77,126.75,28.28765614]
[1725415767340,3.9447,126.77,126.76,5.74561017]
[1725415767341,11.8307,126.77,126.76,5.74561017]
[1725415767542,7.886,126.77,126.75,28.13235614]
[1725415767945,3.9456,126.74,126.73,42.38606818]
[1725415768449,7.886,126.73,126.71,70.73981168]
[1725415768644,41.926,126.72,126.71,70.73981168]
[1725415769345,41.926,126.72,126.71,66.90301199]
[1725415769546,3.9469,126.7,126.69,88.38034091]
[1725415769949,3.97932947,126.71,126.68,0.05476275]